[Event "*** SCC Grand Prix: Titled Tuesday Blitz"]
[Site "Chess.com"]
[Date "2020.07.21"]
[Round "4"]
[White "dpopadic"]
[Black "Th3_Hound"]
[Result "1/2-1/2"]
[WhiteElo "2385"]
[BlackElo "2593"]
[TimeControl "180+1"]
[EndTime "10:38:56 PDT"]
[Termination "Game drawn by repetition"]

1. e4 {[%clk 0:03:00.9]} 1... e5 {[%clk 0:02:59.6]} 2. Nf3 {[%clk 0:03:00.1]}
2... Nc6 {[%clk 0:02:59.9]} 3. Bb5 {[%clk 0:02:59.8]} 3... a6 {[%clk 0:03:00.1]}
4. Ba4 {[%clk 0:02:59.4]} 4... Nf6 {[%clk 0:03:00.2]} 5. O-O {[%clk 0:02:59.3]}
5... Be7 {[%clk 0:03:00.3]} 6. Re1 {[%clk 0:02:59.4]} 6... b5 {[%clk 0:03:00.3]}
7. Bb3 {[%clk 0:03:00]} 7... d6 {[%clk 0:03:00.6]} 8. c3 {[%clk 0:02:59.7]} 8...
O-O {[%clk 0:03:01]} 9. d3 {[%clk 0:02:59.8]} 9... Na5 {[%clk 0:02:53.7]} 10.
Bc2 {[%clk 0:02:59.5]} 10... c5 {[%clk 0:02:53.5]} 11. h3 {[%clk 0:02:59.5]}
11... Re8 {[%clk 0:02:53.2]} 12. Nbd2 {[%clk 0:02:59.8]} 12... Bf8 {[%clk
0:02:53]} 13. Nf1 {[%clk 0:02:59.8]} 13... g6 {[%clk 0:02:53.3]} 14. Ng3 {[%clk
0:02:59.8]} 14... Bg7 {[%clk 0:02:53.7]} 15. Be3 {[%clk 0:02:59.6]} 15... Nc6
{[%clk 0:02:52.7]} 16. Qc1 {[%clk 0:02:59.4]} 16... Bb7 {[%clk 0:02:52.3]} 17.
Bh6 {[%clk 0:02:58.9]} 17... Bh8 {[%clk 0:02:50.8]} 18. Bb3 {[%clk 0:02:47.6]}
18... Na5 {[%clk 0:02:48.6]} 19. Bc2 {[%clk 0:02:46]} 19... c4 {[%clk
0:02:47.3]} 20. d4 {[%clk 0:02:41.1]} 20... exd4 {[%clk 0:02:40.1]} 21. cxd4
{[%clk 0:02:40.7]} 21... Nc6 {[%clk 0:02:40.1]} 22. Qd2 {[%clk 0:02:35]} 22...
Rc8 {[%clk 0:02:07.1]} 23. Rad1 {[%clk 0:02:32.8]} 23... Qa5 {[%clk 0:01:59.2]}
24. Qf4 {[%clk 0:02:27.6]} 24... Nb4 {[%clk 0:01:47.2]} 25. Bb1 {[%clk
0:02:15.1]} 25... d5 {[%clk 0:01:33]} 26. a3 {[%clk 0:01:52.2]} 26... Nd3 {[%clk
0:01:27.8]} 27. Bxd3 {[%clk 0:01:51]} 27... cxd3 {[%clk 0:01:28.4]} 28. e5
{[%clk 0:01:40.4]} 28... Ne4 {[%clk 0:01:28]} 29. Rxd3 {[%clk 0:01:35.9]} 29...
Rc2 {[%clk 0:01:14.2]} 30. b4 {[%clk 0:01:35.4]} 30... Qc7 {[%clk 0:01:13.2]}
31. Rf1 {[%clk 0:01:28.6]} 31... f6 {[%clk 0:00:59.3]} 32. exf6 {[%clk 0:00:53]}
32... Bxf6 {[%clk 0:00:53.6]} 33. Qxc7 {[%clk 0:00:49.5]} 33... Rxc7 {[%clk
0:00:53]} 34. Bf4 {[%clk 0:00:49.4]} 34... Rc2 {[%clk 0:00:52.9]} 35. Ne5 {[%clk
0:00:46.4]} 35... Rec8 {[%clk 0:00:38.6]} 36. Nd7 {[%clk 0:00:44.6]} 36... Bg7
{[%clk 0:00:36.7]} 37. Nc5 {[%clk 0:00:44.4]} 37... Nxc5 {[%clk 0:00:37]} 38.
dxc5 {[%clk 0:00:42.9]} 38... d4 {[%clk 0:00:37.5]} 39. f3 {[%clk 0:00:31.5]}
39... Bd5 {[%clk 0:00:37.8]} 40. Rfd1 {[%clk 0:00:18.7]} 40... Bc4 {[%clk
0:00:37.6]} 41. Rxd4 {[%clk 0:00:19]} 41... Bxd4+ {[%clk 0:00:37.4]} 42. Rxd4
{[%clk 0:00:19.1]} 42... Re8 {[%clk 0:00:37.5]} 43. Ne4 {[%clk 0:00:18.8]} 43...
Re6 {[%clk 0:00:28.5]} 44. c6 {[%clk 0:00:18]} 44... Rxc6 {[%clk 0:00:26.5]} 45.
Be5 {[%clk 0:00:17.1]} 45... Rc1+ {[%clk 0:00:25.7]} 46. Kh2 {[%clk 0:00:15.3]}
46... Rc8 {[%clk 0:00:26.4]} 47. Rd7 {[%clk 0:00:14.8]} 47... Bf7 {[%clk
0:00:21.6]} 48. Nf6+ {[%clk 0:00:14.5]} 48... Kf8 {[%clk 0:00:19.6]} 49. Nxh7+
{[%clk 0:00:13.7]} 49... Ke8 {[%clk 0:00:20]} 50. Nf6+ {[%clk 0:00:13.6]} 50...
Kf8 {[%clk 0:00:20.5]} 51. Nh7+ {[%clk 0:00:13.1]} 51... Ke8 {[%clk 0:00:20.8]}
52. Nf6+ {[%clk 0:00:12.9]} 52... Kf8 {[%clk 0:00:21.4]} 53. Nh7+ {[%clk
0:00:12.6]} 1/2-1/2

[Event "*** SCC Grand Prix: Titled Tuesday Blitz"]
[Site "Chess.com"]
[Date "2020.07.21"]
[Round "4"]
[White "Bayernbk"]
[Black "FeketeBarika"]
[Result "1-0"]
[WhiteElo "2504"]
[BlackElo "2181"]
[TimeControl "180+1"]
[EndTime "10:38:56 PDT"]
[Termination "Bayernbk won by resignation"]

1. e4 {[%clk 0:03:00.4]} 1... d5 {[%clk 0:03:00.9]} 2. Nc3 {[%clk 0:02:57.6]}
2... d4 {[%clk 0:03:00.5]} 3. Nce2 {[%clk 0:02:57.3]} 3... c5 {[%clk 0:03:01.4]}
4. d3 {[%clk 0:02:57.7]} 4... Nc6 {[%clk 0:03:01.7]} 5. f4 {[%clk 0:02:58.2]}
5... e6 {[%clk 0:03:01.4]} 6. Nf3 {[%clk 0:02:58.6]} 6... Bd6 {[%clk 0:03:01.5]}
7. g3 {[%clk 0:02:56.7]} 7... Nge7 {[%clk 0:03:00.1]} 8. Bg2 {[%clk 0:02:56.6]}
8... Bd7 {[%clk 0:02:53.8]} 9. O-O {[%clk 0:02:56.5]} 9... O-O {[%clk
0:02:52.7]} 10. e5 {[%clk 0:02:50.7]} 10... Bc7 {[%clk 0:02:47.7]} 11. Ng5
{[%clk 0:02:51.3]} 11... Nd5 {[%clk 0:02:45.3]} 12. Bd2 {[%clk 0:02:44.4]} 12...
Nce7 {[%clk 0:02:43.4]} 13. g4 {[%clk 0:02:41.5]} 13... h6 {[%clk 0:02:40.7]}
14. Ne4 {[%clk 0:02:41]} 14... b6 {[%clk 0:02:39.6]} 15. c4 {[%clk 0:02:27.2]}
15... Ne3 {[%clk 0:02:26.4]} 16. Bxe3 {[%clk 0:02:25.3]} 16... dxe3 {[%clk
0:02:27.3]} 17. Qc1 {[%clk 0:02:15]} 17... Bc6 {[%clk 0:02:20.5]} 18. Qxe3
{[%clk 0:02:13.4]} 18... Qd7 {[%clk 0:01:36]} 19. Rad1 {[%clk 0:02:06.6]} 19...
Rad8 {[%clk 0:01:09.2]} 20. d4 {[%clk 0:02:05.8]} 20... cxd4 {[%clk 0:01:06.6]}
21. Nxd4 {[%clk 0:02:01.8]} 21... Qe8 {[%clk 0:00:59.7]} 22. h4 {[%clk
0:01:32.8]} 22... a6 {[%clk 0:00:39.7]} 23. h5 {[%clk 0:01:27.3]} 23... b5
{[%clk 0:00:39]} 24. Nxc6 {[%clk 0:01:22.2]} 24... Nxc6 {[%clk 0:00:34.7]} 25.
c5 {[%clk 0:01:20.1]} 25... Nb4 {[%clk 0:00:33.2]} 26. Nd6 {[%clk 0:01:16.4]}
26... Qe7 {[%clk 0:00:26.9]} 27. a3 {[%clk 0:01:13.5]} 27... Nd5 {[%clk
0:00:23.2]} 28. Bxd5 {[%clk 0:01:11.4]} 28... exd5 {[%clk 0:00:24.1]} 29. Rxd5
{[%clk 0:01:11.6]} 29... Qe6 {[%clk 0:00:23.3]} 30. Qf3 {[%clk 0:01:06]} 30...
a5 {[%clk 0:00:16.8]} 31. f5 {[%clk 0:01:05.2]} 31... Qe7 {[%clk 0:00:16.9]} 32.
Nxb5 {[%clk 0:00:58.8]} 32... Bxe5 {[%clk 0:00:14.5]} 33. Re1 {[%clk 0:00:37.8]}
33... f6 {[%clk 0:00:14.4]} 34. Nd6 {[%clk 0:00:33.8]} 34... Kh7 {[%clk
0:00:13.9]} 35. Kg2 {[%clk 0:00:32.1]} 35... Rb8 {[%clk 0:00:12.9]} 36. Nc4
{[%clk 0:00:29]} 36... Qc7 {[%clk 0:00:11.5]} 37. Nxe5 {[%clk 0:00:27]} 37...
Rxb2+ {[%clk 0:00:11.3]} 38. Re2 {[%clk 0:00:25.5]} 38... Rxe2+ {[%clk
0:00:11.2]} 39. Qxe2 {[%clk 0:00:26.1]} 39... fxe5 {[%clk 0:00:12]} 40. Rxe5
{[%clk 0:00:25.6]} 40... Qc6+ {[%clk 0:00:11.8]} 41. Qe4 {[%clk 0:00:24.9]}
41... Qb5 {[%clk 0:00:12.1]} 42. f6+ {[%clk 0:00:24.5]} 42... Kg8 {[%clk
0:00:12.7]} 43. Qg6 {[%clk 0:00:13.4]} 43... Rxf6 {[%clk 0:00:11.2]} 44. Re8+
{[%clk 0:00:13.1]} 44... Rf8 {[%clk 0:00:11.5]} 45. Qe6+ {[%clk 0:00:12.2]}
45... Kh7 {[%clk 0:00:11]} 46. Rxf8 {[%clk 0:00:11.7]} 46... Qb2+ {[%clk
0:00:09.9]} 47. Rf2 {[%clk 0:00:11.7]} 47... Qb7+ {[%clk 0:00:09.7]} 48. c6
{[%clk 0:00:11]} 1-0

[Event "*** SCC Grand Prix: Titled Tuesday Blitz"]
[Site "Chess.com"]
[Date "2020.07.21"]
[Round "4"]
[White "M1711"]
[Black "nitpicker"]
[Result "1-0"]
[WhiteElo "2421"]
[BlackElo "2230"]
[TimeControl "180+1"]
[EndTime "10:38:56 PDT"]
[Termination "M1711 won on time"]

1. d4 {[%clk 0:03:00.9]} 1... Nf6 {[%clk 0:02:59.1]} 2. c4 {[%clk 0:03:00.7]}
2... e6 {[%clk 0:02:58.9]} 3. Nf3 {[%clk 0:02:59.9]} 3... b6 {[%clk 0:02:57.4]}
4. g3 {[%clk 0:02:58.5]} 4... Ba6 {[%clk 0:02:56.3]} 5. Qc2 {[%clk 0:02:55.7]}
5... Bb7 {[%clk 0:02:48.1]} 6. Bg2 {[%clk 0:02:53]} 6... c5 {[%clk 0:02:47.2]}
7. d5 {[%clk 0:02:52.7]} 7... exd5 {[%clk 0:02:40.7]} 8. cxd5 {[%clk 0:02:53.6]}
8... Bxd5 {[%clk 0:02:27.9]} 9. Nc3 {[%clk 0:02:37.6]} 9... Bc6 {[%clk
0:02:26.4]} 10. O-O {[%clk 0:02:27.2]} 10... d5 {[%clk 0:01:55.4]} 11. Ne5
{[%clk 0:02:17.3]} 11... Bb7 {[%clk 0:01:31.3]} 12. Qa4+ {[%clk 0:01:42.2]}
12... Nbd7 {[%clk 0:01:30.8]} 13. Rd1 {[%clk 0:01:07.7]} 13... a6 {[%clk
0:01:28.1]} 14. Nxd7 {[%clk 0:01:03.6]} 14... Qxd7 {[%clk 0:01:12.9]} 15. Qxd7+
{[%clk 0:01:02.3]} 15... Kxd7 {[%clk 0:01:07.3]} 16. Bg5 {[%clk 0:00:59.7]}
16... Be7 {[%clk 0:00:46.4]} 17. Bxf6 {[%clk 0:00:58.8]} 17... Bxf6 {[%clk
0:00:46.5]} 18. Bxd5 {[%clk 0:00:46.4]} 18... Bxd5 {[%clk 0:00:29.8]} 19. Nxd5
{[%clk 0:00:45.2]} 19... Kc6 {[%clk 0:00:24.6]} 20. e4 {[%clk 0:00:33]} 20...
Bd4 {[%clk 0:00:21.1]} 21. Rac1 {[%clk 0:00:29.1]} 21... Kb7 {[%clk 0:00:20.3]}
22. b4 {[%clk 0:00:24.4]} 22... Rhe8 {[%clk 0:00:19]} 23. bxc5 {[%clk
0:00:18.8]} 23... Bxc5 {[%clk 0:00:16.4]} 24. Rc4 {[%clk 0:00:13.4]} 24... Rad8
{[%clk 0:00:15.7]} 25. Rb1 {[%clk 0:00:12.6]} 25... Ka7 {[%clk 0:00:13.2]} 26.
Kg2 {[%clk 0:00:11]} 26... f5 {[%clk 0:00:12.5]} 27. Nc3 {[%clk 0:00:05.4]}
27... fxe4 {[%clk 0:00:10.2]} 28. Nxe4 {[%clk 0:00:06.3]} 28... Rd4 {[%clk
0:00:09.6]} 29. Rxd4 {[%clk 0:00:02.7]} 29... Bxd4 {[%clk 0:00:10.3]} 30. Nd6
{[%clk 0:00:03.2]} 30... Rd8 {[%clk 0:00:07.9]} 31. Nf5 {[%clk 0:00:02.3]} 31...
Bf6 {[%clk 0:00:07.4]} 32. h4 {[%clk 0:00:02]} 32... b5 {[%clk 0:00:07.6]} 33.
a3 {[%clk 0:00:01.8]} 33... Kb6 {[%clk 0:00:07.7]} 34. Ne3 {[%clk 0:00:01.8]}
34... Rd3 {[%clk 0:00:06.6]} 35. h5 {[%clk 0:00:02.7]} 35... h6 {[%clk
0:00:05.5]} 36. Ng4 {[%clk 0:00:01.8]} 36... Bd4 {[%clk 0:00:05.5]} 37. Re1
{[%clk 0:00:01.6]} 37... Rxa3 {[%clk 0:00:05.1]} 38. Re6+ {[%clk 0:00:02.5]}
38... Ka5 {[%clk 0:00:04.5]} 39. Rg6 {[%clk 0:00:03.4]} 39... Ra2 {[%clk
0:00:01.8]} 40. Kf3 {[%clk 0:00:04.3]} 40... b4 {[%clk 0:00:01.5]} 41. Ke4
{[%clk 0:00:05.2]} 1-0

[Event "*** SCC Grand Prix: Titled Tuesday Blitz"]
[Site "Chess.com"]
[Date "2020.07.21"]
[Round "4"]
[White "2008king"]
[Black "Sjakkerntobi"]
[Result "1/2-1/2"]
[WhiteElo "2255"]
[BlackElo "2414"]
[TimeControl "180+1"]
[EndTime "10:38:58 PDT"]
[Termination "Game drawn by repetition"]

1. e4 {[%clk 0:03:00.9]} 1... e6 {[%clk 0:03:00]} 2. d4 {[%clk 0:03:00.5]} 2...
d5 {[%clk 0:03:00.7]} 3. Nc3 {[%clk 0:03:00.7]} 3... Bb4 {[%clk 0:03:01.3]} 4.
exd5 {[%clk 0:03:00.5]} 4... exd5 {[%clk 0:03:01.1]} 5. Bd3 {[%clk 0:03:00.9]}
5... Nc6 {[%clk 0:03:01.8]} 6. a3 {[%clk 0:02:54.2]} 6... Ba5 {[%clk 0:03:01.8]}
7. Ne2 {[%clk 0:02:43.8]} 7... Nge7 {[%clk 0:03:00.2]} 8. O-O {[%clk 0:02:40.6]}
8... O-O {[%clk 0:03:00.1]} 9. Be3 {[%clk 0:02:40.4]} 9... Bf5 {[%clk
0:02:59.6]} 10. Ng3 {[%clk 0:02:35.4]} 10... Bxd3 {[%clk 0:02:57.8]} 11. Qxd3
{[%clk 0:02:36.3]} 11... Qd7 {[%clk 0:02:52.4]} 12. Nce2 {[%clk 0:02:25.8]}
12... Bb6 {[%clk 0:02:43.7]} 13. c3 {[%clk 0:01:21.9]} 13... Rad8 {[%clk
0:02:36.3]} 14. a4 {[%clk 0:01:21.5]} 14... a6 {[%clk 0:02:35.4]} 15. b4 {[%clk
0:01:21.6]} 15... Rfe8 {[%clk 0:02:29.1]} 16. Rad1 {[%clk 0:01:21]} 16... Nc8
{[%clk 0:01:42.3]} 17. Qf5 {[%clk 0:01:18.1]} 17... Qxf5 {[%clk 0:01:38]} 18.
Nxf5 {[%clk 0:01:19]} 18... Nd6 {[%clk 0:01:38.9]} 19. Nxd6 {[%clk 0:01:17.5]}
19... Rxd6 {[%clk 0:01:39.8]} 20. Ng3 {[%clk 0:01:16.1]} 20... g6 {[%clk
0:01:39.4]} 21. Bf4 {[%clk 0:01:15.7]} 21... Rde6 {[%clk 0:01:39]} 22. h4 {[%clk
0:01:11.6]} 22... R6e7 {[%clk 0:01:34]} 23. h5 {[%clk 0:01:10.6]} 23... Nd8
{[%clk 0:01:33.2]} 24. h6 {[%clk 0:01:05.5]} 24... Ne6 {[%clk 0:01:31.1]} 25.
Be5 {[%clk 0:01:05.7]} 25... c6 {[%clk 0:01:26.5]} 26. Bf6 {[%clk 0:01:04]}
26... Rd7 {[%clk 0:01:26.6]} 27. Rfe1 {[%clk 0:01:04.3]} 27... Bd8 {[%clk
0:01:25]} 28. Bxd8 {[%clk 0:01:01.4]} 28... Rdxd8 {[%clk 0:01:25.9]} 29. Re5
{[%clk 0:00:58.9]} 29... f6 {[%clk 0:01:23.3]} 30. Re3 {[%clk 0:00:57.6]} 30...
Kf7 {[%clk 0:01:21.5]} 31. Rde1 {[%clk 0:00:58]} 31... Nc7 {[%clk 0:01:20.6]}
32. Nf1 {[%clk 0:00:52.8]} 32... Rxe3 {[%clk 0:01:18]} 33. Rxe3 {[%clk
0:00:53.7]} 33... Ne8 {[%clk 0:01:18.9]} 34. Nh2 {[%clk 0:00:53.6]} 34... Nd6
{[%clk 0:01:18.3]} 35. Ng4 {[%clk 0:00:52.4]} 35... Nc4 {[%clk 0:01:18]} 36. Re2
{[%clk 0:00:51.5]} 36... Rd6 {[%clk 0:01:13]} 37. f3 {[%clk 0:00:49.4]} 37...
Re6 {[%clk 0:01:12.9]} 38. Kf2 {[%clk 0:00:49.1]} 38... Rxe2+ {[%clk 0:00:56.5]}
39. Kxe2 {[%clk 0:00:50]} 39... Ke6 {[%clk 0:00:56.3]} 40. Kd3 {[%clk
0:00:35.4]} 40... Nb2+ {[%clk 0:00:54.1]} 41. Kc2 {[%clk 0:00:34.8]} 41... Nxa4
{[%clk 0:00:54.4]} 42. Kb3 {[%clk 0:00:33.8]} 42... Nb6 {[%clk 0:00:53.5]} 43.
Ne3 {[%clk 0:00:32.6]} 43... Nc8 {[%clk 0:00:45.3]} 44. g4 {[%clk 0:00:32.1]}
44... Nd6 {[%clk 0:00:45.2]} 45. Kc2 {[%clk 0:00:30.1]} 45... Nf7 {[%clk
0:00:45.4]} 46. Kd3 {[%clk 0:00:29.8]} 46... Nxh6 {[%clk 0:00:45]} 47. Nc2
{[%clk 0:00:30.2]} 47... Nf7 {[%clk 0:00:43.1]} 48. c4 {[%clk 0:00:30.6]} 48...
h5 {[%clk 0:00:40.2]} 49. cxd5+ {[%clk 0:00:29.3]} 49... cxd5 {[%clk 0:00:40]}
50. gxh5 {[%clk 0:00:29.1]} 50... gxh5 {[%clk 0:00:40.1]} 51. Ne3 {[%clk
0:00:30]} 51... Nd6 {[%clk 0:00:38.9]} 52. Ng2 {[%clk 0:00:27.6]} 52... Nf5
{[%clk 0:00:38.6]} 53. Nf4+ {[%clk 0:00:26.8]} 53... Kd6 {[%clk 0:00:36.4]} 54.
Nxh5 {[%clk 0:00:27.7]} 54... Ke6 {[%clk 0:00:16.3]} 55. Nf4+ {[%clk 0:00:28]}
55... Kd6 {[%clk 0:00:16.9]} 56. Nh5 {[%clk 0:00:28.5]} 56... Ke7 {[%clk
0:00:17.1]} 57. Nf4 {[%clk 0:00:28.5]} 57... Kd6 {[%clk 0:00:14.9]} 58. Nh5
{[%clk 0:00:24.5]} 1/2-1/2

[Event "*** SCC Grand Prix: Titled Tuesday Blitz"]
[Site "Chess.com"]
[Date "2020.07.21"]
[Round "4"]
[White "Shivagami"]
[Black "Klavdia_Nik"]
[Result "1-0"]
[WhiteElo "2226"]
[BlackElo "2028"]
[TimeControl "180+1"]
[EndTime "10:38:59 PDT"]
[Termination "Shivagami won on time"]

1. d4 {[%clk 0:03:00.9]} 1... Nf6 {[%clk 0:02:51.2]} 2. c4 {[%clk 0:02:56]} 2...
c5 {[%clk 0:02:49.1]} 3. d5 {[%clk 0:02:55.8]} 3... b5 {[%clk 0:02:47.8]} 4. Qc2
{[%clk 0:02:55.3]} 4... bxc4 {[%clk 0:02:43]} 5. e4 {[%clk 0:02:49.3]} 5... d6
{[%clk 0:02:39.9]} 6. Bxc4 {[%clk 0:02:48.9]} 6... g6 {[%clk 0:02:36.4]} 7. f4
{[%clk 0:02:48.8]} 7... Bg7 {[%clk 0:02:34]} 8. Nf3 {[%clk 0:02:48.5]} 8... O-O
{[%clk 0:02:29.2]} 9. O-O {[%clk 0:02:47.6]} 9... Nfd7 {[%clk 0:02:22.1]} 10.
Nc3 {[%clk 0:02:35.2]} 10... Ba6 {[%clk 0:02:19.1]} 11. Bxa6 {[%clk 0:02:29]}
11... Nxa6 {[%clk 0:02:18.6]} 12. a3 {[%clk 0:02:28.7]} 12... Rb8 {[%clk
0:02:15.8]} 13. b3 {[%clk 0:02:19.6]} 13... Qa5 {[%clk 0:02:09.9]} 14. Bb2
{[%clk 0:02:16.4]} 14... Nc7 {[%clk 0:01:48.1]} 15. Rae1 {[%clk 0:02:06.4]}
15... Bxc3 {[%clk 0:01:30.5]} 16. Bxc3 {[%clk 0:02:04.5]} 16... Qxa3 {[%clk
0:01:30.6]} 17. Nd2 {[%clk 0:01:59.6]} 17... Qa6 {[%clk 0:01:25.1]} 18. Ra1
{[%clk 0:01:53.9]} 18... Qb7 {[%clk 0:01:17.4]} 19. Qd3 {[%clk 0:01:51.2]} 19...
Nb5 {[%clk 0:01:14.6]} 20. Bb2 {[%clk 0:01:46.1]} 20... Nd4 {[%clk 0:01:00.3]}
21. Ra3 {[%clk 0:01:33]} 21... Qb5 {[%clk 0:00:36.6]} 22. Nc4 {[%clk 0:00:55.5]}
22... Nxb3 {[%clk 0:00:28.7]} 23. Rf3 {[%clk 0:00:41.5]} 23... Nd4 {[%clk
0:00:27.3]} 24. Rh3 {[%clk 0:00:38.1]} 24... f6 {[%clk 0:00:18.3]} 25. Rc3
{[%clk 0:00:20.5]} 25... Rf7 {[%clk 0:00:16.4]} 26. Qe3 {[%clk 0:00:16.4]} 26...
Nf8 {[%clk 0:00:15.7]} 27. f5 {[%clk 0:00:15.1]} 27... a5 {[%clk 0:00:14.3]} 28.
fxg6 {[%clk 0:00:14.1]} 28... hxg6 {[%clk 0:00:11.7]} 29. Rc1 {[%clk 0:00:13]}
29... Rh7 {[%clk 0:00:11.3]} 30. Rg3 {[%clk 0:00:13]} 30... Kf7 {[%clk 0:00:10]}
31. Qf2 {[%clk 0:00:09.3]} 31... Qb3 {[%clk 0:00:08.3]} 32. Rxb3 {[%clk
0:00:08]} 32... Rxb3 {[%clk 0:00:07.3]} 33. e5 {[%clk 0:00:08.5]} 33... dxe5
{[%clk 0:00:06.6]} 34. Nxe5+ {[%clk 0:00:08.8]} 34... Kg7 {[%clk 0:00:07.3]} 35.
Ng4 {[%clk 0:00:05.4]} 35... Rb4 {[%clk 0:00:05.7]} 36. Rxc5 {[%clk 0:00:05.2]}
36... Nf5 {[%clk 0:00:05.7]} 37. h3 {[%clk 0:00:03.5]} 37... Nd7 {[%clk
0:00:04.6]} 38. Rc7 {[%clk 0:00:03.7]} 1-0

[Event "*** SCC Grand Prix: Titled Tuesday Blitz"]
[Site "Chess.com"]
[Date "2020.07.21"]
[Round "4"]
[White "wonderfultime"]
[Black "platy3"]
[Result "1-0"]
[WhiteElo "2982"]
[BlackElo "2759"]
[TimeControl "180+1"]
[EndTime "10:39:00 PDT"]
[Termination "wonderfultime won by checkmate"]

1. d4 {[%clk 0:03:00.9]} 1... Nf6 {[%clk 0:02:59.6]} 2. Nf3 {[%clk 0:03:01]}
2... e6 {[%clk 0:02:59]} 3. c4 {[%clk 0:03:01.1]} 3... c5 {[%clk 0:02:58]} 4. d5
{[%clk 0:02:59.1]} 4... exd5 {[%clk 0:02:58.4]} 5. cxd5 {[%clk 0:03:00]} 5... d6
{[%clk 0:02:59.1]} 6. Nc3 {[%clk 0:03:00.1]} 6... g6 {[%clk 0:02:59.8]} 7. Bf4
{[%clk 0:03:00.3]} 7... a6 {[%clk 0:02:57.1]} 8. a4 {[%clk 0:03:00.6]} 8... Bg7
{[%clk 0:02:56.7]} 9. e3 {[%clk 0:03:01.2]} 9... O-O {[%clk 0:02:53.7]} 10. h3
{[%clk 0:03:01.7]} 10... Qe7 {[%clk 0:02:47.6]} 11. Be2 {[%clk 0:03:01.8]} 11...
Nbd7 {[%clk 0:02:47.4]} 12. O-O {[%clk 0:03:02]} 12... Ne8 {[%clk 0:02:37.7]}
13. Nd2 {[%clk 0:02:58.3]} 13... Ne5 {[%clk 0:02:36]} 14. Qb3 {[%clk 0:02:57.9]}
14... f5 {[%clk 0:02:29]} 15. Bg3 {[%clk 0:02:20.6]} 15... g5 {[%clk 0:02:25.8]}
16. f4 {[%clk 0:01:55.5]} 16... Ng6 {[%clk 0:02:25.7]} 17. Nc4 {[%clk
0:01:42.1]} 17... gxf4 {[%clk 0:02:17.2]} 18. Bxf4 {[%clk 0:01:34.5]} 18... Nxf4
{[%clk 0:02:12.7]} 19. Rxf4 {[%clk 0:01:35.4]} 19... Rb8 {[%clk 0:01:38.5]} 20.
a5 {[%clk 0:01:33]} 20... Bh6 {[%clk 0:01:32.6]} 21. Rf3 {[%clk 0:01:32.7]}
21... Bd7 {[%clk 0:01:30.1]} 22. Raf1 {[%clk 0:01:27.9]} 22... Kh8 {[%clk
0:00:59]} 23. Bd3 {[%clk 0:01:27.9]} 23... Ng7 {[%clk 0:00:58.1]} 24. Qb6 {[%clk
0:01:11.9]} 24... Rf6 {[%clk 0:00:55.1]} 25. e4 {[%clk 0:00:52.6]} 25... f4
{[%clk 0:00:50.9]} 26. e5 {[%clk 0:00:52.1]} 26... dxe5 {[%clk 0:00:50.1]} 27.
Qc7 {[%clk 0:00:41.1]} 27... Re8 {[%clk 0:00:46]} 28. Ne4 {[%clk 0:00:40.6]}
28... Rg6 {[%clk 0:00:43.7]} 29. Nxc5 {[%clk 0:00:37.2]} 29... Rxg2+ {[%clk
0:00:43.8]} 30. Kh1 {[%clk 0:00:31.3]} 30... Rg3 {[%clk 0:00:24]} 31. Qxd7
{[%clk 0:00:12.3]} 31... Qxc5 {[%clk 0:00:20.8]} 32. Rxg3 {[%clk 0:00:10.4]}
32... fxg3 {[%clk 0:00:19.7]} 33. Nd6 {[%clk 0:00:10.2]} 33... Bf4 {[%clk
0:00:05.3]} 34. Nxe8 {[%clk 0:00:06.7]} 34... Nxe8 {[%clk 0:00:02.7]} 35. Qxe8+
{[%clk 0:00:07.6]} 35... Kg7 {[%clk 0:00:03.3]} 36. Qd7+ {[%clk 0:00:08.1]}
36... Kf6 {[%clk 0:00:02.7]} 37. Qf5+ {[%clk 0:00:07.7]} 37... Ke7 {[%clk
0:00:01.8]} 38. Qxh7+ {[%clk 0:00:07.9]} 38... Kd8 {[%clk 0:00:01.9]} 39. Qg8+
{[%clk 0:00:07.8]} 39... Kc7 {[%clk 0:00:02.4]} 40. d6+ {[%clk 0:00:05.6]} 40...
Qxd6 {[%clk 0:00:01.4]} 41. Be4 {[%clk 0:00:05.5]} 41... Qc5 {[%clk 0:00:01.1]}
42. Qf7+ {[%clk 0:00:05.6]} 42... Kd8 {[%clk 0:00:01.7]} 43. Rd1+ {[%clk
0:00:05.7]} 43... Kc8 {[%clk 0:00:02.2]} 44. Qxb7# {[%clk 0:00:05.8]} 1-0